[Event "1000GM Spring IM-D 2024"]
[Site "New York"]
[Date "2024.03.31"]
[Round "7.9"]
[White "Zaderman, Vitaly"]
[Black "Gaw, Chloe"]
[Result "0-1"]
[ECO "D40"]
[WhiteElo "2177"]
[BlackElo "2092"]
[Annotator "RC"]
[PlyCount "90"]
[EventDate "2024.03.26"]
[EventType "tourn"]
[EventCountry "USA"]
[SourceTitle "playchess.com"]
[Source "ChessBase"]
[SourceQuality "1"]
[TimeControl "5400+30"]

1. d4 {[%emt 0:00:13]} d5 {[%emt 0:00:41]} 2. c4 {[%emt 0:01:35]} dxc4 {[%emt 0:00:03]} 3. Nf3 {[%emt 0:00:27]} Nf6 {[%emt 0:00:06]} 4. e3 {[%emt 0:00:07]} e6 {[%emt 0:00:04]} 5. Bxc4 {[%emt 0:00:09]} c5 {[%emt 0:00:04]} 6. O-O {[%emt 0:00:08]} a6 {[%emt 0:00:04]} 7. a3 {[%emt 0:00:32]} b5 {[%emt 0:00:12]} 8. Bd3 {[%emt 0:00:13]} Bb7 {[%emt 0:00:23]} 9. Nc3 {[%emt 0:00:13]} Be7 {[%emt 0:00:58]} 10. dxc5 {[%emt 0:00:41]} Bxc5 {[%emt 0:00:31]} 11. b4 {[%emt 0:00:13]} Be7 {[%emt 0:01:11]} 12. e4 {[%emt 0:01:09]} Nbd7 {[%emt 0:03:39]} 13. Re1 {[%emt 0:01:35]} Rc8 {[%emt 0:12:42]} 14. Bb2 {[%emt 0:00:22]} Nb6 {[%emt 0:04:17]} 15. Qe2 {[%emt 0:09:03]} Nc4 {[%emt 0:05:24]} 16. Rad1 {[%emt 0:00:17]} Qc7 {[%emt 0:02:39]} 17. Rc1 {[%emt 0:05:39]} Qf4 {[%emt 0:10:17]} 18. a4 {[%emt 0:04:47]} Bxb4 {[%emt 0:14:39]} 19. axb5 {[%emt 0:00:37]} axb5 {[%emt 0:02:37]} 20. Red1 {[%emt 0:08:27]} O-O {[%emt 0:05:48]} 21. Nxb5 {[%emt 0:00:27]} Nxb2 {[%emt 0:00:53]} 22. Rxc8 {[%emt 0:00:50]} Nxd1 {[%emt 0:02:04]} 23. Rxf8+ {[%emt 0:00:24]} Bxf8 {[%emt 0:00:06]} 24. Qxd1 {[%emt 0:00:27]} Nxe4 {[%emt 0:01:57]} 25. Be2 {[%emt 0:01:08]} h6 {[%emt 0:07:45]} 26. g3 {[%emt 0:00:21]} Qf6 {[%emt 0:00:48]} 27. Qd4 {[%emt 0:02:02]} Bc5 {[%emt 0:02:50]} 28. Qxf6 {[%emt 0:00:18]} Bxf2+ {[%emt 0:01:21]} 29. Kg2 {[%emt 0:00:39]} gxf6 {[%emt 0:00:09]} 30. Nd6 {[%emt 0:00:13]} Nxd6 {[%emt 0:00:21]} 31. Kxf2 {[%emt 0:00:08]} Bxf3 {[%emt 0:02:43]} 32. Bxf3 {[%emt 0:00:41]} Kg7 {[%emt 0:00:05]} 33. Ke3 {[%emt 0:01:13]} Kg6 {[%emt 0:00:31]} 34. Be2 {[%emt 0:01:30]} Kf5 {[%emt 0:01:28]} 35. Bf3 {[%emt 0:00:23]} Ke5 {[%emt 0:01:09]} 36. Bh5 {[%emt 0:00:51]} f5 {[%emt 0:00:41]} 37. Kf3 {[%emt 0:00:16]} Kd4 {[%emt 0:01:12]} 38. Ke2 {[%emt 0:00:18]} e5 {[%emt 0:00:20]} 39. Kf2 {[%emt 0:00:19]} e4 {[%emt 0:02:04]} 40. Ke2 {[%emt 0:00:25]} f6 {[%emt 0:00:24]} 41. Bg6 {[%emt 0:00:23]} Ke5 {[%emt 0:01:26]} 42. Ke3 {[%emt 0:01:08]} Nc4+ {[%emt 0:00:05]} 43. Ke2 {[%emt 0:00:29]} f4 {[%emt 0:00:18]} 44. Bf7 {[%emt 0:00:15]} f3+ {[%emt 0:01:47]} 45. Kf2 {[%emt 0:00:07]} Kd4 {[%emt 0:00:26]} 0-1

[Event "1000GM Spring IM-D 2024"]
[Site "New York"]
[Date "2024.03.31"]
[Round "8.1"]
[White "Mou, Iris"]
[Black "Lapshun, Yury"]
[Result "1/2-1/2"]
[ECO "C55"]
[WhiteElo "2216"]
[BlackElo "2332"]
[Annotator "RC"]
[PlyCount "156"]
[EventDate "2024.03.26"]
[EventType "tourn"]
[EventCountry "USA"]
[SourceTitle "playchess.com"]
[Source "ChessBase"]
[SourceQuality "1"]
[TimeControl "5400+30"]

1. e4 {[%emt 0:10:01]} e5 {[%emt 0:33:32]} 2. Nf3 {[%emt 0:00:13]} Nc6 {[%emt 0:00:06]} 3. Bc4 {[%emt 0:00:08]} Nf6 {[%emt 0:00:04]} 4. d3 {[%emt 0:00:09]} Be7 {[%emt 0:00:28]} 5. O-O {[%emt 0:00:25]} O-O {[%emt 0:00:04]} 6. Re1 {[%emt 0:00:07]} d6 {[%emt 0:00:08]} 7. a4 {[%emt 0:00:21]} Be6 {[%emt 0:00:13]} 8. a5 {[%emt 0:00:25]} a6 {[%emt 0:00:53]} 9. Nc3 {[%emt 0:00:09]} Qd7 {[%emt 0:00:41]} 10. Nd5 {[%emt 0:01:21]} Bxd5 {[%emt 0:02:08]} 11. Bxd5 {[%emt 0:03:05]} Nxd5 {[%emt 0:01:03]} 12. exd5 {[%emt 0:00:10]} Nd4 {[%emt 0:00:12]} 13. c4 {[%emt 0:23:17]} Nxf3+ {[%emt 0:03:19]} 14. Qxf3 {[%emt 0:00:08]} f5 {[%emt 0:00:08]} 15. b4 {[%emt 0:05:08]} Bf6 {[%emt 0:01:54]} 16. Rb1 {[%emt 0:03:27]} c6 {[%emt 0:00:40]} 17. Bb2 {[%emt 0:02:57]} Rae8 {[%emt 0:01:15]} 18. h3 {[%emt 0:10:16]} Rf7 {[%emt 0:01:49]} 19. Bc3 {[%emt 0:03:15]} e4 {[%emt 0:12:03]} 20. dxe4 {[%emt 0:04:45]} fxe4 {[%emt 0:00:24]} 21. Qg3 {[%emt 0:03:25]} Bxc3 {[%emt 0:00:40]} 22. Qxc3 {[%emt 0:00:09]} cxd5 {[%emt 0:01:38]} 23. cxd5 {[%emt 0:00:15]} Qf5 {[%emt 0:00:50]} 24. Qd2 {[%emt 0:01:29]} Re5 {[%emt 0:00:43]} 25. Rbd1 {[%emt 0:02:26]} h5 {[%emt 0:03:44]} 26. Re3 {[%emt 0:06:31]} h4 {[%emt 0:09:03]} 27. Qc2 {[%emt 0:01:14]} Rfe7 {[%emt 0:09:24]} 28. Rde1 {[%emt 0:05:44]} g6 {[%emt 0:06:43]} 29. Qc4 {[%emt 0:01:27]} Kg7 {[%emt 0:00:42]} 30. Qc3 {[%emt 0:01:32]} Kh7 {[%emt 0:00:40]} 31. Qc2 {[%emt 0:00:56]} Kg8 {[%emt 0:01:42]} 32. Qc4 {[%emt 0:00:22]} Kf7 {[%emt 0:01:09]} 33. R1e2 {[%emt 0:02:54]} Kg7 {[%emt 0:00:57]} 34. Qc3 {[%emt 0:00:22]} Kh7 {[%emt 0:00:30]} 35. Qc2 {[%emt 0:00:38]} Kg8 {[%emt 0:01:10]} 36. Qc4 {[%emt 0:00:27]} Kf8 {[%emt 0:00:48]} 37. Rd2 {[%emt 0:04:34]} Kg7 {[%emt 0:00:42]} 38. Rde2 {[%emt 0:01:05]} Kf7 {[%emt 0:03:08]} 39. Re1 {[%emt 0:00:51]} Kg7 {[%emt 0:00:35]} 40. Qc3 {[%emt 0:00:17]} Qf6 {[%emt 0:01:34]} 41. Qd4 {[%emt 0:02:40]} g5 {[%emt 0:02:35]} 42. Rxe4 {[%emt 0:01:18]} Rxe4 {[%emt 0:00:05]} 43. Rxe4 {[%emt 0:00:05]} Qxd4 {[%emt 0:01:02]} 44. Rxd4 {[%emt 0:00:03]} Re1+ {[%emt 0:00:15]} 45. Kh2 {[%emt 0:00:02]} Kf6 {[%emt 0:00:04]} 46. f4 {[%emt 0:01:45]} Rb1 {[%emt 0:00:44]} 47. fxg5+ {[%emt 0:00:47]} Kxg5 {[%emt 0:00:01]} 48. Re4 {[%emt 0:00:27]} Kh5 {[%emt 0:00:29]} 49. Rg4 {[%emt 0:00:44]} Rd1 {[%emt 0:01:20]} 50. Rg7 {[%emt 0:00:11]} b6 {[%emt 0:00:22]} 51. axb6 {[%emt 0:00:54]} Rxd5 {[%emt 0:00:03]} 52. Ra7 {[%emt 0:00:33]} Rb5 {[%emt 0:00:12]} 53. Rxa6 {[%emt 0:00:32]} Rxb4 {[%emt 0:00:04]} 54. Kg1 {[%emt 0:00:19]} Rb2 {[%emt 0:00:13]} 55. Ra5+ {[%emt 0:00:37]} Kg6 {[%emt 0:00:17]} 56. Ra6 {[%emt 0:00:12]} Kg5 {[%emt 0:01:05]} 57. Kf1 {[%emt 0:00:25]} Kf4 {[%emt 0:00:32]} 58. Ra4+ {[%emt 0:00:30]} Kg5 {[%emt 0:00:36]} 59. Ra5+ {[%emt 0:00:36]} Kg6 {[%emt 0:00:28]} 60. Ra6 {[%emt 0:00:16]} Kf5 {[%emt 0:00:15]} 61. Ra4 {[%emt 0:01:02]} Kg5 {[%emt 0:00:10]} 62. Ra6 {[%emt 0:00:27]} Kf4 {[%emt 0:01:06]} 63. b7 {[%emt 0:00:30]} Rb1+ {[%emt 0:01:31]} 64. Kf2 {[%emt 0:00:13]} Rb2+ {[%emt 0:00:02]} 65. Kg1 {[%emt 0:00:06]} Rb1+ {[%emt 0:00:08]} 66. Kh2 {[%emt 0:00:05]} Rxb7 {[%emt 0:00:45]} 67. Rxd6 {[%emt 0:00:03]} Kg5 {[%emt 0:00:25]} 68. Rd5+ {[%emt 0:00:08]} Kg6 {[%emt 0:00:08]} 69. Kg1 {[%emt 0:01:10]} Rb2 {[%emt 0:00:16]} 70. Kf1 {[%emt 0:00:04]} Ra2 {[%emt 0:00:37]} 71. Re5 {[%emt 0:00:08]} Rb2 {[%emt 0:00:37]} 72. Re2 {[%emt 0:00:16]} Rb3 {[%emt 0:00:17]} 73. Kf2 {[%emt 0:00:08]} Kf5 {[%emt 0:00:05]} 74. Rc2 {[%emt 0:00:28]} Rb5 {[%emt 0:01:20]} 75. Rc3 {[%emt 0:00:50]} Ra5 {[%emt 0:00:32]} 76. Kf3 {[%emt 0:01:12]} Rb5 {[%emt 0:00:10]} 77. Re3 {[%emt 0:00:56]} Ra5 {[%emt 0:00:08]} 78. Rb3 {[%emt 0:00:45]} Ke5 {[%emt 0:01:27]} 1/2-1/2

[Event "1000GM Spring IM-D 2024"]
[Site "New York"]
[Date "2024.03.31"]
[Round "8.2"]
[White "Polyik, Peter"]
[Black "Safranek, William"]
[Result "1/2-1/2"]
[ECO "A20"]
[WhiteElo "2295"]
[BlackElo "1950"]
[Annotator "ChessBase"]
[PlyCount "93"]
[EventDate "2024.03.26"]
[EventType "tourn"]
[EventCountry "USA"]
[SourceTitle "playchess.com"]
[Source "ChessBase"]
[SourceQuality "1"]
[TimeControl "5400+30"]

1. c4 {[%emt 0:00:02]} e5 {[%emt 0:14:59]} 2. g3 {[%emt 0:00:15]} Nf6 {[%emt 0:00:16]} 3. Bg2 {[%emt 0:00:08]} d5 {[%emt 0:00:05]} 4. cxd5 {[%emt 0:00:07]} Nxd5 {[%emt 0:00:03]} 5. Nf3 {[%emt 0:01:10]} Nc6 {[%emt 0:00:16]} 6. O-O {[%emt 0:00:17]} Be7 {[%emt 0:00:10]} 7. d4 {[%emt 0:01:14]} exd4 {[%emt 0:10:08]} 8. Nxd4 {[%emt 0:00:46]} Nxd4 {[%emt 0:00:17]} 9. Qxd4 {[%emt 0:00:07]} Nf6 {[%emt 0:00:03]} 10. Qa4+ {[%emt 0:03:12]} c6 {[%emt 0:02:29]} 11. Rd1 {[%emt 0:00:52]} Qb6 {[%emt 0:02:09]} 12. Be3 {[%emt 0:00:40]} Bc5 {[%emt 0:00:24]} 13. Bxc5 {[%emt 0:00:07]} Qxc5 {[%emt 0:00:03]} 14. Nc3 {[%emt 0:00:15]} O-O {[%emt 0:01:28]} 15. Rac1 {[%emt 0:00:10]} Qb6 {[%emt 0:01:23]} 16. Qc2 {[%emt 0:01:52]} Re8 {[%emt 0:04:46]} 17. e4 {[%emt 0:14:06]} Bg4 {[%emt 0:03:11]} 18. Re1 {[%emt 0:00:28]} Rad8 {[%emt 0:03:34]} 19. h3 {[%emt 0:04:52]} Be6 {[%emt 0:05:12]} 20. Kh2 {[%emt 0:08:29]} Rd4 {[%emt 0:07:17]} 21. Rcd1 {[%emt 0:08:21]} Red8 {[%emt 0:00:16]} 22. Rxd4 {[%emt 0:00:06]} Rxd4 {[%emt 0:00:06]} 23. Rd1 {[%emt 0:05:01]} h5 {[%emt 0:07:23]} 24. Na4 {[%emt 0:17:02]} Qd8 {[%emt 0:00:10]} 25. Rxd4 {[%emt 0:00:06]} Qxd4 {[%emt 0:00:02]} 26. Nc5 {[%emt 0:01:32]} Bxa2 {[%emt 0:19:34]} 27. Nxb7 {[%emt 0:03:16]} Bc4 {[%emt 0:00:43]} 28. Na5 {[%emt 0:15:21]} Bd3 {[%emt 0:03:08]} 29. Nxc6 {[%emt 0:00:10]} Bxc2 {[%emt 0:00:02]} 30. Nxd4 {[%emt 0:00:07]} Bxe4 {[%emt 0:00:04]} 31. Bxe4 {[%emt 0:00:05]} Nxe4 {[%emt 0:00:04]} 32. Kg2 {[%emt 0:00:05]} a5 {[%emt 0:02:33]} 33. Kf3 {[%emt 0:06:46]} Ng5+ {[%emt 0:03:40]} 34. Ke3 {[%emt 0:00:15]} Nxh3 {[%emt 0:00:07]} 35. Nb3 {[%emt 0:00:04]} Kf8 {[%emt 0:00:51]} 36. Nxa5 {[%emt 0:00:05]} Ke7 {[%emt 0:00:11]} 37. f4 {[%emt 0:05:17]} g5 {[%emt 0:00:50]} 38. fxg5 {[%emt 0:00:04]} Nxg5 {[%emt 0:00:03]} 39. Nc6+ {[%emt 0:00:39]} Kd6 {[%emt 0:01:02]} 40. Nd4 {[%emt 0:00:05]} Kd5 {[%emt 0:00:28]} 41. Ne2 {[%emt 0:01:01]} Kc4 {[%emt 0:03:09]} 42. Nc1 {[%emt 0:03:59]} f5 {[%emt 0:01:49]} 43. Ne2 {[%emt 0:02:25]} Ne4 {[%emt 0:00:15]} 44. Kf4 {[%emt 0:00:22]} Nxg3 {[%emt 0:00:15]} 45. Nxg3 {[%emt 0:00:15]} Kb3 {[%emt 0:00:04]} 46. Nxh5 {[%emt 0:00:03]} Kxb2 {[%emt 0:00:04]} 47. Kxf5 {[%emt 0:00:05]} 1/2-1/2

[Event "1000GM Spring IM-D 2024"]
[Site "New York"]
[Date "2024.03.31"]
[Round "8.3"]
[White "Yoo, Eugene"]
[Black "Rohde, Michael"]
[Result "1-0"]
[ECO "A55"]
[WhiteElo "2205"]
[BlackElo "2318"]
[Annotator "ChessBase"]
[PlyCount "57"]
[EventDate "2024.03.26"]
[EventType "tourn"]
[EventCountry "USA"]
[SourceTitle "playchess.com"]
[Source "ChessBase"]
[SourceQuality "1"]
[TimeControl "5400+30"]

1. d4 {[%emt 0:00:51]} Nf6 {[%emt 1:31:00]} 2. c4 {[%emt 0:00:18]} d6 {[%emt 0:00:00]} 3. Nc3 {[%emt 0:00:27]} Nbd7 {[%emt 0:00:00]} 4. g3 {[%emt 0:01:18]} e5 {[%emt 0:00:00]} 5. Nf3 {[%emt 0:00:12]} c6 {[%emt 0:00:00]} 6. e4 {[%emt 0:01:01]} Qa5 {[%emt 0:00:00]} 7. Bd2 {[%emt 0:04:24]} Qb6 {[%emt 0:00:00]} 8. c5 {[%emt 0:03:44]} dxc5 {[%emt 0:00:00]} 9. dxe5 {[%emt 0:00:15]} Ng4 {[%emt 0:00:00]} 10. e6 {[%emt 0:00:43]} fxe6 {[%emt 0:00:00]} 11. Ng5 {[%emt 0:08:27]} Ndf6 {[%emt 0:00:00]} 12. h3 {[%emt 0:05:59]} Ne5 {[%emt 0:00:00]} 13. f4 {[%emt 0:04:23]} Nf7 {[%emt 0:00:00]} 14. h4 {[%emt 0:06:58]} Be7 {[%emt 0:00:00]} 15. Bc4 {[%emt 0:02:42]} Nd6 {[%emt 0:00:00]} 16. Bxe6 {[%emt 0:13:30]} h6 {[%emt 0:00:00]} 17. Bxc8 {[%emt 0:04:46]} hxg5 {[%emt 0:00:00]} 18. Be6 {[%emt 0:00:58]} Nfxe4 {[%emt 0:00:00]} 19. Nxe4 {[%emt 0:00:06]} Nxe4 {[%emt 0:00:00]} 20. Qc2 {[%emt 0:01:04]} Nxd2 {[%emt 0:00:00]} 21. Qg6+ {[%emt 0:04:09]} Kd8 {[%emt 0:00:00]} 22. O-O-O {[%emt 0:05:49]} Kc7 {[%emt 0:00:01]} 23. Qxg7 {[%emt 0:02:40]} Rad8 {[%emt 0:02:27]} 24. Rxd2 {[%emt 0:07:11]} Rxd2 {[%emt 0:01:21]} 25. Kxd2 {[%emt 0:00:01]} Re8 {[%emt 0:02:24]} 26. Rd1 {[%emt 0:05:28]} Qb4+ {[%emt 0:04:14]} 27. Kc1 {[%emt 0:00:52]} Qe4 {[%emt 0:01:42]} 28. Qf7 {[%emt 0:03:42]} Qb4 {[%emt 0:01:21]} 29. Qg7 {[%emt 0:13:02]} 1-0

[Event "1000GM Spring IM-D 2024"]
[Site "New York"]
[Date "2024.03.31"]
[Round "8.4"]
[White "Fedorowicz, John"]
[Black "Shangin, Lev"]
[Result "1-0"]
[ECO "A22"]
[WhiteElo "2372"]
[BlackElo "1994"]
[Annotator "RC"]
[PlyCount "55"]
[EventDate "2024.03.26"]
[EventType "tourn"]
[EventCountry "USA"]
[SourceTitle "playchess.com"]
[Source "ChessBase"]
[SourceQuality "1"]
[TimeControl "5400+30"]

1. c4 {[%emt 0:03:57]} e5 {[%emt 0:01:12]} 2. Nc3 {[%emt 0:01:20]} Nf6 {[%emt 0:01:41]} 3. Nf3 {[%emt 0:00:37]} d6 {[%emt 0:03:46]} 4. g3 {[%emt 0:01:34]} Be6 {[%emt 0:02:37]} 5. d4 {[%emt 0:04:55]} Nbd7 {[%emt 0:04:21]} 6. d5 {[%emt 0:00:41]} Bf5 {[%emt 0:00:55]} 7. Nh4 {[%emt 0:00:36]} Bg4 {[%emt 0:01:00]} 8. h3 {[%emt 0:01:05]} Bh5 {[%emt 0:00:07]} 9. Bg2 {[%emt 0:02:47]} h6 {[%emt 0:06:39]} 10. Qc2 {[%emt 0:01:39]} g5 {[%emt 0:03:26]} 11. Nf5 {[%emt 0:00:09]} Bg6 {[%emt 0:01:21]} 12. e4 {[%emt 0:00:39]} Bxf5 {[%emt 0:02:49]} 13. exf5 {[%emt 0:00:05]} Be7 {[%emt 0:00:42]} 14. Bd2 {[%emt 0:01:18]} a5 {[%emt 0:01:41]} 15. O-O-O {[%emt 0:01:32]} Nc5 {[%emt 0:01:57]} 16. Kb1 {[%emt 0:00:07]} Qd7 {[%emt 0:01:47]} 17. Bc1 {[%emt 0:00:39]} O-O-O {[%emt 0:05:07]} 18. g4 {[%emt 0:00:23]} Rdg8 {[%emt 0:05:18]} 19. Be3 {[%emt 0:01:33]} h5 {[%emt 0:02:12]} 20. f3 {[%emt 0:00:06]} e4 {[%emt 0:05:26]} 21. Nb5 {[%emt 0:02:19]} exf3 {[%emt 0:03:37]} 22. Bxf3 {[%emt 0:00:04]} hxg4 {[%emt 0:00:19]} 23. hxg4 {[%emt 0:00:06]} Qd8 {[%emt 0:01:01]} 24. Qc3 {[%emt 0:01:05]} b6 {[%emt 0:02:28]} 25. Na7+ {[%emt 0:00:07]} Kb7 {[%emt 0:00:23]} 26. Nc6 {[%emt 0:00:04]} Qd7 {[%emt 0:01:32]} 27. Bxc5 {[%emt 0:00:26]} dxc5 {[%emt 0:00:18]} 28. d6 {[%emt 0:00:25]} 1-0

[Event "1000GM Spring IM-D 2024"]
[Site "New York"]
[Date "2024.03.31"]
[Round "8.5"]
[White "Jakovljevic, Vlado"]
[Black "Ho, Cooper"]
[Result "1-0"]
[ECO "D06"]
[WhiteElo "2356"]
[BlackElo "2004"]
[Annotator "RC"]
[PlyCount "131"]
[EventDate "2024.03.26"]
[EventType "tourn"]
[EventCountry "USA"]
[SourceTitle "playchess.com"]
[Source "ChessBase"]
[SourceQuality "1"]
[TimeControl "5400+30"]

1. Nf3 {[%emt 0:00:05]} d5 {[%emt 0:00:44]} 2. d4 {[%emt 0:00:13]} Bf5 {[%emt 0:00:14]} 3. c4 {[%emt 0:00:41]} e6 {[%emt 0:00:07]} 4. Nc3 {[%emt 0:01:08]} Nf6 {[%emt 0:00:08]} 5. Nh4 {[%emt 0:01:44]} Bg6 {[%emt 0:01:23]} 6. Qb3 {[%emt 0:01:35]} Nc6 {[%emt 0:02:09]} 7. cxd5 {[%emt 0:00:47]} exd5 {[%emt 0:01:16]} 8. Nxg6 {[%emt 0:01:41]} hxg6 {[%emt 0:00:15]} 9. e3 {[%emt 0:00:07]} a6 {[%emt 0:18:37]} 10. Bd2 {[%emt 0:08:45]} Be7 {[%emt 0:04:20]} 11. Be2 {[%emt 0:12:02]} Na5 {[%emt 0:09:44]} 12. Qa4+ {[%emt 0:11:12]} c6 {[%emt 0:02:59]} 13. Nxd5 {[%emt 0:03:40]} Qxd5 {[%emt 0:03:36]} 14. Bf3 {[%emt 0:01:46]} Qd6 {[%emt 0:03:45]} 15. Bxa5 {[%emt 0:18:32]} Rxh2 {[%emt 0:07:47]} 16. Rxh2 {[%emt 0:01:10]} Qxh2 {[%emt 0:00:25]} 17. O-O-O {[%emt 0:00:06]} Kf8 {[%emt 0:04:41]} 18. Qb3 {[%emt 0:06:02]} b5 {[%emt 0:06:44]} 19. Qc2 {[%emt 0:01:23]} Rc8 {[%emt 0:01:48]} 20. Kb1 {[%emt 0:01:22]} Qd6 {[%emt 0:03:11]} 21. Rc1 {[%emt 0:04:47]} Nd5 {[%emt 0:04:33]} 22. Qe4 {[%emt 0:08:17]} Qe6 {[%emt 0:08:55]} 23. Bd2 {[%emt 0:05:07]} Bb4 {[%emt 0:04:51]} 24. Qxe6 {[%emt 0:04:35]} fxe6 {[%emt 0:00:04]} 25. Bxd5 {[%emt 0:00:18]} Bxd2 {[%emt 0:00:08]} 26. Bxe6 {[%emt 0:00:19]} Bxc1 {[%emt 0:02:49]} 27. Bxc8 {[%emt 0:00:17]} Bd2 {[%emt 0:00:08]} 28. Kc2 {[%emt 0:01:12]} Be1 {[%emt 0:00:25]} 29. f3 {[%emt 0:00:40]} Ke7 {[%emt 0:02:51]} 30. Bxa6 {[%emt 0:00:09]} Kd7 {[%emt 0:01:12]} 31. Kd3 {[%emt 0:02:05]} Kd6 {[%emt 0:01:16]} 32. a3 {[%emt 0:01:19]} Bf2 {[%emt 0:01:04]} 33. b3 {[%emt 0:02:14]} Kc7 {[%emt 0:01:42]} 34. a4 {[%emt 0:00:26]} bxa4 {[%emt 0:01:14]} 35. bxa4 {[%emt 0:00:01]} Kb6 {[%emt 0:00:11]} 36. Bc4 {[%emt 0:00:38]} Ka5 {[%emt 0:01:15]} 37. Bb3 {[%emt 0:00:39]} Kb4 {[%emt 0:01:27]} 38. Bc2 {[%emt 0:00:06]} Bg1 {[%emt 0:00:14]} 39. f4 {[%emt 0:01:30]} Bh2 {[%emt 0:00:53]} 40. Ke2 {[%emt 0:00:13]} g5 {[%emt 0:00:45]} 41. fxg5 {[%emt 0:00:49]} c5 {[%emt 0:00:25]} 42. dxc5 {[%emt 0:00:39]} Kxc5 {[%emt 0:00:01]} 43. Kf3 {[%emt 0:00:18]} Be5 {[%emt 0:00:22]} 44. Ke4 {[%emt 0:00:27]} Bc3 {[%emt 0:00:38]} 45. Kf5 {[%emt 0:00:34]} Kd5 {[%emt 0:00:49]} 46. Bd3 {[%emt 0:00:32]} Kd6 {[%emt 0:00:26]} 47. Bc4 {[%emt 0:01:10]} Kc5 {[%emt 0:00:18]} 48. Bb3 {[%emt 0:00:20]} Kb4 {[%emt 0:00:13]} 49. Bd1 {[%emt 0:00:22]} Kc5 {[%emt 0:00:13]} 50. Ke4 {[%emt 0:00:49]} Kd6 {[%emt 0:00:59]} 51. Bg4 {[%emt 0:00:19]} Kc5 {[%emt 0:00:36]} 52. Bd7 {[%emt 0:00:07]} Kd6 {[%emt 0:00:17]} 53. Bb5 {[%emt 0:00:10]} Ke6 {[%emt 0:00:19]} 54. Kd3 {[%emt 0:00:39]} Be1 {[%emt 0:00:12]} 55. Be8 {[%emt 0:00:38]} Kd5 {[%emt 0:01:31]} 56. Bd7 {[%emt 0:00:41]} Kc5 {[%emt 0:00:22]} 57. e4 {[%emt 0:00:25]} Kd6 {[%emt 0:00:21]} 58. Bf5 {[%emt 0:00:11]} Ba5 {[%emt 0:00:39]} 59. Kc4 {[%emt 0:00:10]} Kc6 {[%emt 0:00:16]} 60. e5 {[%emt 0:01:10]} Bd8 {[%emt 0:00:09]} 61. Be4+ {[%emt 0:00:33]} Kd7 {[%emt 0:00:32]} 62. Kd5 {[%emt 0:00:11]} Ke7 {[%emt 0:00:48]} 63. Bf5 {[%emt 0:00:17]} Bc7 {[%emt 0:00:10]} 64. Bc2 {[%emt 0:00:53]} Ba5 {[%emt 0:00:13]} 65. Bb3 {[%emt 0:00:09]} Bc3 {[%emt 0:00:06]} 66. e6 {[%emt 0:00:17]} 1-0

[Event "1000GM Spring IM-D 2024"]
[Site "New York"]
[Date "2024.03.31"]
[Round "8.6"]
[White "Khodzhamkuliev, Bahadur"]
[Black "Cherukuri, Nitesh"]
[Result "1-0"]
[ECO "D03"]
[WhiteElo "2159"]
[BlackElo "2000"]
[Annotator "ChessBase"]
[PlyCount "107"]
[EventDate "2024.03.26"]
[EventType "tourn"]
[EventCountry "USA"]
[SourceTitle "playchess.com"]
[Source "ChessBase"]
[SourceQuality "1"]
[TimeControl "5400+30"]

1. Nf3 {[%emt 0:00:03]} Nf6 {[%emt 0:02:43]} 2. d4 {[%emt 0:00:10]} g6 {[%emt 0:00:20]} 3. Bg5 {[%emt 0:00:11]} Bg7 {[%emt 0:00:16]} 4. Nbd2 {[%emt 0:00:12]} O-O {[%emt 0:00:17]} 5. c3 {[%emt 0:00:07]} d5 {[%emt 0:00:14]} 6. e3 {[%emt 0:00:16]} Nbd7 {[%emt 0:00:22]} 7. Be2 {[%emt 0:00:20]} Re8 {[%emt 0:00:22]} 8. O-O {[%emt 0:01:16]} e5 {[%emt 0:00:08]} 9. b4 {[%emt 0:04:45]} c6 {[%emt 0:00:56]} 10. Rb1 {[%emt 0:02:13]} e4 {[%emt 0:14:18]} 11. Ne1 {[%emt 0:00:39]} h6 {[%emt 0:03:23]} 12. Bh4 {[%emt 0:01:21]} g5 {[%emt 0:01:25]} 13. Bg3 {[%emt 0:00:11]} Nf8 {[%emt 0:03:29]} 14. b5 {[%emt 0:03:10]} Ng6 {[%emt 0:03:25]} 15. bxc6 {[%emt 0:07:19]} bxc6 {[%emt 0:00:06]} 16. c4 {[%emt 0:01:38]} a5 {[%emt 0:07:13]} 17. Qa4 {[%emt 0:07:54]} Bd7 {[%emt 0:01:47]} 18. c5 {[%emt 0:02:15]} Bf8 {[%emt 0:02:22]} 19. Nc2 {[%emt 0:02:11]} h5 {[%emt 0:03:15]} 20. Rb7 {[%emt 0:04:57]} Rc8 {[%emt 0:11:28]} 21. Rfb1 {[%emt 0:06:24]} h4 {[%emt 0:04:07]} 22. Bb8 {[%emt 0:02:34]} g4 {[%emt 0:05:01]} 23. R7b6 {[%emt 0:01:47]} Be6 {[%emt 0:05:20]} 24. Ba6 {[%emt 0:08:59]} Nd7 {[%emt 0:00:23]} 25. Bxc8 {[%emt 0:00:29]} Nxb6 {[%emt 0:00:08]} 26. cxb6 {[%emt 0:03:32]} Qxc8 {[%emt 0:01:03]} 27. Bc7 {[%emt 0:00:17]} Qb7 {[%emt 0:05:08]} 28. Nb3 {[%emt 0:05:55]} Qa6 {[%emt 0:01:43]} 29. Qxa5 {[%emt 0:03:08]} Qe2 {[%emt 0:01:12]} 30. Qd2 {[%emt 0:00:37]} Qa6 {[%emt 0:00:11]} 31. Na5 {[%emt 0:01:29]} h3 {[%emt 0:01:06]} 32. g3 {[%emt 0:01:36]} Bc8 {[%emt 0:01:30]} 33. a3 {[%emt 0:03:42]} Bb7 {[%emt 0:01:41]} 34. Nxb7 {[%emt 0:00:14]} Qxb7 {[%emt 0:00:01]} 35. Qa5 {[%emt 0:04:15]} Rc8 {[%emt 0:02:35]} 36. Qe1 {[%emt 0:04:00]} Ra8 {[%emt 0:01:19]} 37. Qc3 {[%emt 0:03:34]} Ra4 {[%emt 0:03:18]} 38. Nb4 {[%emt 0:01:50]} Ne7 {[%emt 0:02:19]} 39. Qb3 {[%emt 0:02:17]} Ra5 {[%emt 0:02:03]} 40. Rc1 {[%emt 0:01:34]} Ra8 {[%emt 0:02:55]} 41. Qd1 {[%emt 0:01:20]} f5 {[%emt 0:01:03]} 42. Qb3 {[%emt 0:00:08]} Ra5 {[%emt 0:00:52]} 43. Rc5 {[%emt 0:00:31]} Rxc5 {[%emt 0:03:59]} 44. dxc5 {[%emt 0:00:05]} Nc8 {[%emt 0:00:21]} 45. Qc3 {[%emt 0:01:58]} Bg7 {[%emt 0:00:12]} 46. Qc2 {[%emt 0:00:22]} Qa8 {[%emt 0:00:54]} 47. Qe2 {[%emt 0:02:06]} Qa5 {[%emt 0:05:03]} 48. Qa6 {[%emt 0:00:36]} Qxc5 {[%emt 0:00:16]} 49. Qxc8+ {[%emt 0:00:09]} Kh7 {[%emt 0:00:42]} 50. Qxf5+ {[%emt 0:00:37]} Kh8 {[%emt 0:00:31]} 51. Qh5+ {[%emt 0:00:15]} Kg8 {[%emt 0:00:07]} 52. Qe8+ {[%emt 0:00:08]} Kh7 {[%emt 0:00:17]} 53. Qxc6 {[%emt 0:00:36]} Qf8 {[%emt 0:00:26]} 54. Bf4 {[%emt 0:00:27]} 1-0